bitfinex-derivatives/quotes_BTCF0:USTF0_20250119
["timestamp","ask_amount","ask_price","bid_price","bid_amount"]
[1737275901555,0.1403,105020.0,105010.0,0.047678]
[1737275901755,0.548774,105020.0,105010.0,0.047678]
[1737275902247,0.187974,105020.0,105010.0,0.047678]
[1737275902450,0.548774,105020.0,105010.0,0.047678]
[1737275903862,0.61692911,105020.0,105000.0,0.186782]
[1737275904061,0.548774,105020.0,105000.0,0.120082]
[1737275904362,0.548774,105020.0,105000.0,0.18823711]
[1737275904559,0.1403,105020.0,105010.0,0.06815511]
[1737275904765,0.1403,105020.0,105010.0,0.11583411]
[1737275904952,0.1403,105020.0,105010.0,0.047679]
[1737275905153,0.187974,105020.0,105010.0,0.047679]
[1737275905359,0.61692911,105020.0,105000.0,0.120082]
[1737275905659,0.548774,105020.0,105000.0,0.18823711]
[1737275906060,0.408479,105010.0,105000.0,0.120082]
[1737275906364,0.61693311,105020.0,105010.0,0.047682]
[1737275906563,0.548778,105020.0,105010.0,0.047682]
[1737275906756,0.548778,105020.0,105000.0,0.120084]
[1737275906965,0.408481,105010.0,105000.0,0.120084]
[1737275907164,0.047681,105010.0,105000.0,0.120084]
[1737275907359,0.3608,105010.0,105000.0,0.18823911]
[1737275907559,0.548778,105020.0,105000.0,0.18823911]
[1737275907761,0.408481,105010.0,105000.0,0.120084]
[1737275908165,0.47663611,105010.0,104990.0,1.5]
[1737275908370,0.47664111,105000.0,104990.0,1.547688]
[1737275909259,0.54784111,105000.0,104990.0,1.5]
[1737275909460,0.047692,104990.0,104980.0,0.047695]
[1737275909654,0.61754711,104990.0,104980.0,0.047695]
[1737275909857,0.61754711,104990.0,104980.0,1.547695]
[1737275911169,0.5017,104990.0,104980.0,1.61585011]
[1737275911472,0.1409,104990.0,104980.0,1.61585011]
[1737275912874,0.0676,104990.0,104980.0,1.61585011]
[1737275913164,0.53014853,105000.0,104990.0,0.047691]
[1737275913570,0.16934853,105000.0,104990.0,0.047691]
[1737275913766,0.16934853,105000.0,104990.0,0.11584611]
[1737275914365,0.16934853,105000.0,104990.0,0.047691]
[1737275914671,0.0463986,105000.0,104990.0,0.047691]
[1737275915265,0.0463986,105000.0,104990.0,0.11584611]
[1737275915466,0.0463986,105000.0,104990.0,1.61584611]
[1737275915666,0.0463986,105000.0,104990.0,1.97664611]
[1737275917573,0.21654715,105000.0,104990.0,1.97664611]
[1737275919070,0.19765788,105010.0,105000.0,0.047686]
[1737275919265,0.09428688,105010.0,105000.0,0.54479622]
[1737275919470,0.48209819,105030.0,105020.0,0.047677]
[1737275919671,0.48209819,105030.0,105020.0,0.47663211]
[1737275920273,0.48209819,105030.0,105020.0,1.97663211]
[1737275920472,0.0663,105040.0,105030.0,0.047673]
[1737275921174,0.77285872,105050.0,105040.0,0.047668]
[1737275921470,0.22589472,105050.0,105040.0,0.47662311]
[1737275921972,0.22589472,105050.0,105040.0,0.61522311]
[1737275922173,0.22589472,105050.0,105040.0,0.68512311]
[1737275922367,0.36449472,105070.0,105040.0,0.68512311]
[1737275922564,0.72529472,105070.0,105060.0,0.047659]
[1737275922771,0.79344983,105070.0,105060.0,0.047659]
[1737275922974,0.43264983,105070.0,105060.0,0.047659]
[1737275923173,0.36449472,105070.0,105060.0,0.047659]
[1737275923769,0.28034505,105070.0,105060.0,0.047659]
[1737275924676,0.64114505,105070.0,105060.0,0.047659]
[1737275925069,0.70930016,105070.0,105060.0,0.047659]
[1737275927082,0.56755511,105070.0,105060.0,0.047659]
[1737275927472,0.4994,105070.0,105060.0,0.047659]
[1737275927877,0.1386,105070.0,105060.0,0.047659]
[1737275928082,0.4994,105070.0,105060.0,0.047659]
[1737275928988,0.56755511,105070.0,105060.0,0.047659]
[1737275929882,0.61521011,105070.0,105050.0,0.047663]
[1737275930185,0.42895511,105060.0,105030.0,0.12702476]
[1737275930389,0.432,105050.0,105040.0,0.047669]
[1737275933085,0.432,105050.0,105030.0,1.6172531]
[1737275933086,0.432,105050.0,105030.0,0.06815511]
[1737275933385,0.432,105050.0,105040.0,0.047669]
[1737275933885,0.50015511,105050.0,105020.0,0.44818076]
[1737275934081,0.432,105050.0,105030.0,0.11582811]
[1737275934382,0.432,105050.0,105040.0,0.047669]
[1737275934578,0.432,105050.0,105040.0,1.547669]
[1737275939892,0.54781911,105050.0,105040.0,0.047669]
[1737275942597,0.54781911,105050.0,105030.0,0.047672]
[1737275942794,0.61392411,105040.0,105030.0,0.047672]
[1737275943387,0.4981,105040.0,105030.0,0.047672]
[1737275945889,0.56625511,105040.0,105030.0,0.047672]
[1737275946291,0.56625511,105040.0,105020.0,0.047677]
[1737275946292,0.61392611,105040.0,105020.0,0.047677]
[1737275946491,0.42895511,105030.0,105020.0,0.047677]
[1737275946793,0.3608,105030.0,105020.0,0.047677]
[1737275946992,0.47662811,105030.0,105020.0,0.047677]
[1737275948692,0.47662811,105030.0,105010.0,0.21798508]
[1737275948887,0.4272,105020.0,105010.0,0.21798508]
[1737275949598,0.4272,105020.0,105010.0,0.047682]
[1737275952199,0.474878,105020.0,105010.0,0.047682]
[1737275953102,0.64432652,105020.0,105010.0,0.047682]
[1737275953301,0.64432652,105020.0,105010.0,0.04739953]
[1737275953507,1.00512652,105020.0,105010.0,0.04739953]
[1737275954303,1.00512652,105020.0,105000.0,1.63468352]
[1737275954304,0.047683,105010.0,105000.0,0.00142841]
[1737275954502,0.49925511,105010.0,104980.0,0.06815511]
[1737275954802,0.3608,104990.0,104980.0,0.11585111]
[1737275955007,0.3608,104990.0,104980.0,1.61585111]
[1737275955308,0.3608,105000.0,104990.0,0.04769]
[1737275956306,0.047692,104990.0,104980.0,0.047696]
[1737275956505,0.65484191,104990.0,104980.0,0.047696]
[1737275957207,0.65484191,104990.0,104970.0,0.25335411]
[1737275957404,0.3608,104980.0,104970.0,0.25335411]
[1737275958800,0.50236239,104980.0,104970.0,0.25335411]
[1737275960312,0.3608,104980.0,104970.0,0.25335411]
[1737275963414,0.3608,104980.0,104970.0,0.18605411]
[1737275964214,0.408496,104980.0,104970.0,0.047699]
[1737275964522,0.4301,104980.0,104970.0,0.11585411]
[1737275966215,0.477796,104980.0,104960.0,1.68930785]
[1737275966419,0.477796,104980.0,104960.0,1.62300785]
[1737275966821,0.477796,104980.0,104960.0,1.613404]
[1737275967322,0.477796,104980.0,104960.0,1.68155911]
[1737275967622,0.477796,104980.0,104970.0,0.047701]
[1737275969324,0.477796,104980.0,104970.0,0.11585611]
[1737275973526,0.116996,104980.0,104970.0,0.11585611]
[1737275974022,0.477796,104980.0,104970.0,0.11585611]
[1737275974327,0.48774363,104980.0,104970.0,0.047701]
[1737275975015,0.48774363,104980.0,104960.0,1.63385511]
[1737275975016,0.48774363,104980.0,104960.0,1.68156011]
[1737275975215,0.408504,104970.0,104950.0,0.36598335]
[1737275975425,0.408506,104960.0,104950.0,0.35616619]
[1737275975624,0.408506,104960.0,104950.0,0.047708]
[1737275975919,0.550506,104960.0,104950.0,0.047708]
[1737275976226,0.550506,104960.0,104940.0,1.54914184]
[1737275976425,0.3608,104950.0,104940.0,1.54914184]
[1737275976627,0.3608,104950.0,104940.0,1.55901419]
[1737275977017,0.3608,104950.0,104940.0,1.54914184]
[1737275977225,0.426,104950.0,104940.0,1.54914184]
[1737275978720,0.59544852,104950.0,104940.0,1.547713]
[1737275978920,0.59544852,104950.0,104940.0,0.047713]
[1737275979918,0.59544852,104950.0,104940.0,1.547713]
[1737275981323,0.71131363,104950.0,104940.0,0.047713]
[1737275981527,0.64315852,104950.0,104930.0,0.067715]
[1737275981828,0.3608,104940.0,104930.0,1.63587011]
[1737275982223,0.3608,104940.0,104930.0,0.13587011]
[1737275982420,0.3608,104940.0,104930.0,0.067715]
[1737275982931,0.3608,104940.0,104930.0,0.02432175]
[1737275983120,0.3608,104940.0,104930.0,0.03432175]
[1737275984931,0.40851,104940.0,104930.0,0.01]
[1737275985125,0.57795852,104940.0,104930.0,0.01]
[1737275985622,0.64611363,104940.0,104930.0,0.01]
[1737275986026,0.57795852,104940.0,104930.0,0.01]
[1737275986531,0.40851,104940.0,104920.0,0.11587311]
[1737275986831,0.4948,104930.0,104920.0,0.11587311]
[1737275987140,0.4948,104930.0,104920.0,0.12587311]
[1737275987925,0.66446508,104930.0,104920.0,0.12587311]
[1737275988746,0.66446508,104930.0,104920.0,0.11587311]
[1737275989640,0.66446508,104930.0,104920.0,0.047718]
[1737275989836,0.73456508,104930.0,104920.0,0.047718]
[1737275990229,0.73456508,104930.0,104920.0,0.057718]
[1737275990431,0.5649,104930.0,104920.0,0.047718]
[1737275990627,0.5649,104930.0,104920.0,0.057718]
[1737275990830,0.2041,104930.0,104920.0,0.12587311]
[1737275991036,0.5649,104930.0,104920.0,0.12587311]
[1737275993637,0.5649,104930.0,104920.0,0.057718]
[1737275993843,0.5649,104930.0,104920.0,0.047718]
[1737275994226,0.612619,104930.0,104920.0,0.047718]
[1737275995934,0.612619,104930.0,104920.0,0.057718]
[1737276001236,0.72568705,104930.0,104920.0,0.057718]
[1737276003145,0.67796805,104930.0,104920.0,0.057718]
[1737276004639,0.54136805,104930.0,104920.0,0.12587311]
[1737276004836,0.47386805,104930.0,104920.0,0.19587311]
[1737276005234,0.3608,104930.0,104920.0,1.76627311]
[1737276005939,0.3608,104930.0,104920.0,1.698118]
[1737276006645,0.53089868,104930.0,104920.0,1.698118]
[1737276006847,0.53089868,104930.0,104920.0,1.688118]
[1737276007451,0.53089868,104930.0,104920.0,1.698118]
[1737276007755,0.3608,104930.0,104920.0,1.698118]
[1737276008353,0.56804449,104940.0,104930.0,0.047719]
[1737276008650,0.56804449,104940.0,104930.0,0.057719]
[1737276008844,0.55846366,104940.0,104930.0,0.12587411]
[1737276009650,0.67433377,104940.0,104930.0,0.057719]
[1737276009845,0.67433377,104940.0,104930.0,0.01]
[1737276010052,0.47667011,104940.0,104930.0,0.01]
[1737276012851,0.64697197,104940.0,104930.0,0.01]
[1737276013352,0.64697197,104940.0,104920.0,0.17030308]
[1737276013554,0.544019,104930.0,104920.0,0.17030308]
[1737276013851,0.544019,104930.0,104910.0,1.94803627]
[1737276014045,0.3608,104920.0,104910.0,1.94803627]
[1737276015454,0.50273813,104920.0,104910.0,2.01619138]
[1737276016746,0.14193813,104920.0,104910.0,1.7876118]
[1737276016948,0.50273813,104920.0,104910.0,1.7876118]
[1737276017745,0.50273813,104920.0,104910.0,2.01619138]
[1737276018348,0.14193813,104920.0,104910.0,2.01619138]
[1737276018546,0.50273813,104920.0,104910.0,2.01619138]
[1737276019564,0.14193813,104920.0,104910.0,2.01619138]
[1737276019752,0.14193813,104920.0,104910.0,2.08619138]
[1737276019947,0.47667911,104920.0,104910.0,1.50142961]
[1737276020255,0.047728,104910.0,104900.0,0.1]
[1737276020464,0.543528,104910.0,104900.0,0.1]
[1737276020660,0.61168311,104910.0,104900.0,0.1]
[1737276021354,0.78192686,104910.0,104900.0,0.1]
[1737276022756,0.61168311,104910.0,104900.0,0.1]
[1737276022947,0.61168311,104910.0,104900.0,0.0108809]
[1737276023853,0.62126336,104910.0,104900.0,0.0108809]
[1737276025856,0.55310825,104910.0,104900.0,0.0108809]
[1737276026252,0.75077191,104910.0,104900.0,0.0108809]
[1737276026448,0.81892702,104910.0,104900.0,0.0108809]
[1737276026857,0.81892702,104910.0,104900.0,0.011075]
[1737276028857,0.80778341,104910.0,104900.0,0.011075]
[1737276030154,0.66629721,104910.0,104900.0,0.011075]
[1737276032463,0.73445232,104910.0,104900.0,0.011075]
[1737276032864,0.62126336,104910.0,104900.0,0.011075]
[1737276034465,0.73445232,104910.0,104900.0,0.011075]
[1737276035666,0.76274956,104910.0,104900.0,0.011075]
[1737276036965,0.62126336,104910.0,104900.0,0.011075]
[1737276038168,0.87590569,104910.0,104900.0,0.011075]
[1737276038871,1.23670569,104910.0,104900.0,0.011075]
[1737276039968,1.31190569,104910.0,104900.0,0.011075]
[1737276040173,1.19874956,104910.0,104900.0,0.011075]
[1737276043275,1.05726336,104910.0,104900.0,0.011075]
[1737276048376,0.98910825,104910.0,104900.0,0.011075]
[1737276048677,1.05726336,104910.0,104900.0,0.011075]
[1737276050869,1.22747879,104910.0,104900.0,0.011075]
[1737276051376,1.20954461,104910.0,104900.0,0.011075]
[1737276052772,1.25976554,104910.0,104900.0,0.011075]
[1737276053177,1.20954461,104910.0,104900.0,0.011075]
[1737276054777,1.25976554,104910.0,104900.0,0.011075]
[1737276056081,1.04956554,104910.0,104900.0,0.011075]
[1737276057078,0.99934461,104910.0,104900.0,0.011075]
[1737276058065,0.82912918,104910.0,104900.0,0.011075]
[1737276058573,0.82912918,104910.0,104900.0,0.00142502]
[1737276058979,1.08533265,104910.0,104900.0,0.00142502]
[1737276060278,1.08533265,104910.0,104900.0,0.00018645]
[1737276060681,1.03511172,104910.0,104900.0,0.00018645]
[1737276061279,1.08533265,104910.0,104900.0,0.00018645]
[1737276063279,0.98738372,104910.0,104900.0,0.05040738]
[1737276063476,0.98738372,104910.0,104900.0,0.45893538]
[1737276063477,0.25620347,104910.0,104900.0,0.45893538]
[1737276064080,0.25620347,104910.0,104900.0,1.95893538]
[1737276065077,0.11364864,104910.0,104900.0,2.51950871]
[1737276065382,0.11364864,104910.0,104900.0,2.53727933]
[1737276066285,0.66422844,104920.0,104900.0,2.20554718]
[1737276066683,0.66422844,104920.0,104900.0,2.25327218]
[1737276066982,0.66422844,104920.0,104910.0,0.047724]
[1737276067684,0.52216764,104920.0,104910.0,0.21928624]
[1737276069580,0.52216764,104920.0,104910.0,0.17156224]
[1737276069976,0.52216764,104920.0,104900.0,0.51630842]
[1737276071276,0.52216764,104920.0,104900.0,0.56403342]
[1737276071483,0.52216764,104920.0,104900.0,0.87710642]
[1737276071689,0.52216764,104920.0,104900.0,0.92483042]
[1737276072183,0.52216764,104920.0,104900.0,0.87710542]
[1737276072489,0.52216764,104920.0,104900.0,0.51630542]
[1737276072883,0.21690512,104910.0,104900.0,0.115902]
[1737276073082,0.21690512,104910.0,104900.0,0.04791045]
[1737276073785,0.21690512,104910.0,104900.0,0.115902]
[1737276074290,0.17047297,104910.0,104900.0,0.115902]
[1737276074988,0.17047297,104910.0,104900.0,0.476702]
[1737276076386,0.17047297,104910.0,104900.0,0.115902]
[1737276076589,0.17047297,104910.0,104900.0,1.615902]
[1737276079386,0.17047297,104910.0,104900.0,0.115902]
[1737276079990,0.76846798,104920.0,104900.0,0.51630542]
[1737276080188,0.72074498,104920.0,104900.0,0.51630542]
[1737276080389,0.76846798,104920.0,104900.0,0.51630542]
[1737276080797,0.72074498,104920.0,104900.0,0.62708142]
[1737276080981,0.72074498,104920.0,104910.0,0.047724]
[1737276083087,0.67302598,104920.0,104910.0,0.11571555]
[1737276083595,0.47414085,104920.0,104910.0,0.11571555]
[1737276083893,0.11334085,104920.0,104910.0,0.11571555]
[1737276084086,0.11334085,104920.0,104910.0,0.47651555]
[1737276084794,0.11334085,104920.0,104910.0,0.11571555]
[1737276084990,1.04477121,104930.0,104910.0,0.64807779]
[1737276085192,1.04477121,104930.0,104910.0,0.28727779]
[1737276085390,1.04477121,104930.0,104910.0,1.78727779]
[1737276085788,1.04477121,104930.0,104910.0,0.28727779]
[1737276086294,1.04477121,104930.0,104910.0,1.78727779]
[1737276086495,1.18644728,104930.0,104910.0,0.28727779]
[1737276086892,1.18644728,104930.0,104910.0,0.33499879]
[1737276087486,1.18644728,104930.0,104920.0,0.047719]
[1737276090488,1.07310643,104930.0,104920.0,0.047719]
[1737276091596,1.07310643,104930.0,104920.0,0.21928124]
[1737276091984,1.02539143,104930.0,104920.0,0.21928124]
[1737276092592,0.51211143,104930.0,104920.0,0.21928124]
[1737276093201,0.55982643,104930.0,104920.0,0.21928124]
[1737276094788,0.55982643,104930.0,104920.0,0.43837279]
[1737276094789,0.51211143,104930.0,104920.0,0.43837279]
[1737276095508,0.59773265,104930.0,104920.0,0.26681055]
[1737276096299,0.59773265,104930.0,104920.0,0.198819]
[1737276096797,0.56932049,104930.0,104920.0,0.198819]
[1737276098503,0.56932049,104930.0,104920.0,0.02202676]
[1737276098703,0.61703549,104930.0,104920.0,0.06974576]
[1737276098907,0.68502704,104930.0,104920.0,0.02202676]
[1737276099600,0.047719,104920.0,104910.0,0.0714]
[1737276099905,0.47651055,104920.0,104900.0,0.047726]
[1737276100099,0.3608,104910.0,104900.0,0.047726]
[1737276100409,0.3608,104910.0,104900.0,0.21928824]
[1737276100905,0.3608,104910.0,104900.0,0.28727979]
[1737276101708,0.3608,104910.0,104900.0,0.26651755]
[1737276102806,0.52217714,104910.0,104900.0,0.83789282]
[1737276103509,0.52217714,104910.0,104900.0,0.76990127]
[1737276104300,0.52217714,104910.0,104900.0,0.72217527]
[1737276105209,0.52217714,104910.0,104900.0,0.95119662]
[1737276105805,0.59016869,104910.0,104900.0,0.95119662]
[1737276106001,0.52217714,104910.0,104900.0,0.95119662]
[1737276106603,0.66424356,104910.0,104900.0,0.55156824]
[1737276108210,0.67400255,104910.0,104900.0,0.55156824]
[1737276108909,0.62627855,104910.0,104900.0,0.55156824]
[1737276109112,0.61651956,104910.0,104900.0,0.66728879]
[1737276109411,0.25571956,104910.0,104900.0,0.66728879]
[1737276110409,0.25571956,104910.0,104900.0,0.59929724]
[1737276110712,0.73223111,104920.0,104900.0,0.99901052]
[1737276111813,0.62810778,104920.0,104910.0,0.17166015]
[1737276112020,0.56011623,104920.0,104910.0,0.17166015]
[1737276117314,0.61031944,104920.0,104910.0,0.17166015]
[1737276118206,0.46825302,104920.0,104900.0,0.47775356]
[1737276118413,0.3608,104910.0,104900.0,0.24873221]
[1737276118711,0.3608,104910.0,104900.0,0.09793221]
[1737276118916,0.56580321,104910.0,104900.0,0.047729]
[1737276119414,0.61352821,104910.0,104890.0,0.09793421]
[1737276119614,0.68482821,104910.0,104890.0,0.09793421]
[1737276120614,0.68482821,104910.0,104890.0,0.45873421]
[1737276120914,0.21675302,104900.0,104890.0,0.45873421]
[1737276123816,0.04643757,104900.0,104890.0,0.45873421]
[1737276124813,0.047737,104890.0,104870.0,0.4738917]
[1737276125013,0.41100321,104880.0,104870.0,0.4021117]
[1737276125211,0.05020321,104880.0,104870.0,0.4021117]
[1737276125715,0.45874121,104880.0,104870.0,0.4021117]
[1737276126411,0.45874121,104880.0,104870.0,0.23045155]
[1737276127011,0.45874121,104880.0,104870.0,0.28065476]
[1737276127218,0.408538,104880.0,104870.0,0.28065476]
[1737276127414,0.408538,104880.0,104870.0,0.29848756]
[1737276127415,0.53153648,104880.0,104870.0,0.29848756]
[1737276127615,0.11353415,104880.0,104870.0,0.65928756]
[1737276127809,0.11353415,104880.0,104870.0,0.73448756]
[1737276128114,0.11353415,104880.0,104870.0,0.78222956]
[1737276128818,0.70113415,104890.0,104870.0,0.71419355]
[1737276129020,0.71058208,104890.0,104870.0,0.71419355]
[1737276130018,0.63328208,104890.0,104880.0,0.17152605]
[1737276130217,0.11353415,104890.0,104880.0,0.28729906]
[1737276130520,0.11353415,104890.0,104880.0,0.79679906]
[1737276130924,0.11353415,104890.0,104880.0,0.72876305]
[1737276131111,0.14191769,104900.0,104880.0,0.5969844]
[1737276131112,0.32348785,104900.0,104880.0,0.5969844]
[1737276131619,0.47656901,104890.0,104880.0,0.4005474]
[1737276132022,0.62256901,104890.0,104880.0,0.4005474]
[1737276132322,0.554533,104890.0,104880.0,0.4005474]
[1737276132516,0.14191769,104890.0,104880.0,0.47657201]
[1737276132918,0.14191769,104890.0,104880.0,0.408536]
[1737276133817,0.14191769,104890.0,104880.0,0.47657201]
[1737276134220,0.14191769,104890.0,104880.0,0.408536]
[1737276136022,0.14191769,104890.0,104880.0,0.47657201]
[1737276136209,0.14191769,104890.0,104880.0,0.408536]
[1737276136415,0.14191769,104890.0,104880.0,0.47657201]
[1737276137511,0.14191769,104890.0,104880.0,1.97657201]
[1737276138109,0.14191769,104890.0,104880.0,1.61577201]
[1737276139021,0.14191769,104890.0,104880.0,1.97657201]
[1737276139324,0.14191769,104890.0,104880.0,1.61577201]
[1737276139516,0.14191769,104890.0,104880.0,1.97657201]
[1737276141021,0.33139074,104900.0,104880.0,2.42476271]
[1737276141226,0.16108951,104900.0,104880.0,2.77821297]
[1737276142129,0.16108951,104900.0,104880.0,2.73047697]
[1737276142328,0.16108951,104900.0,104890.0,0.047733]
[1737276142529,0.16108951,104900.0,104890.0,0.21927171]
[1737276143420,0.11336051,104900.0,104890.0,0.21927171]
[1737276144119,0.11336051,104900.0,104890.0,0.64810772]
[1737276144320,0.11336051,104900.0,104890.0,1.10422907]
[1737276145528,0.69626051,104910.0,104890.0,0.93269036]
[1737276145722,0.69626051,104910.0,104900.0,0.047728]
[1737276146527,0.81202052,104910.0,104890.0,0.27675335]
[1737276146736,0.81202052,104910.0,104900.0,0.17155249]
[1737276147531,0.69866001,104910.0,104890.0,0.047732]
[1737276148044,0.630624,104910.0,104890.0,0.047732]
[1737276148832,0.3608,104900.0,104890.0,0.047732]
[1737276149137,0.57725487,104900.0,104890.0,0.047732]
[1737276149733,0.57725487,104900.0,104890.0,0.11576801]
[1737276150240,0.53081603,104900.0,104890.0,0.047732]
[1737276151337,0.57854403,104900.0,104890.0,0.047732]
[1737276151737,0.57854403,104900.0,104880.0,1.908536]
[1737276151937,0.2273,104890.0,104880.0,0.408536]
[1737276152431,0.77754809,104890.0,104880.0,0.047736]
[1737276153834,0.80584903,104890.0,104880.0,0.047736]
[1737276156144,0.047737,104880.0,104870.0,1.89082112]
[1737276157240,0.047737,104880.0,104870.0,2.13126939]
[1737276158738,0.047737,104880.0,104870.0,2.1993054]
[1737276158940,0.74920647,104890.0,104870.0,2.1993054]
[1737276159245,0.3608,104880.0,104870.0,2.1993054]
[1737276159649,0.74920647,104890.0,104870.0,2.1993054]
[1737276159850,0.3608,104880.0,104870.0,2.1993054]
[1737276160849,0.74920647,104890.0,104870.0,2.1993054]
[1737276161036,0.3608,104880.0,104870.0,2.1993054]
[1737276161351,0.74920647,104890.0,104870.0,2.1993054]
[1737276161545,0.3608,104880.0,104870.0,2.1993054]
[1737276161942,0.70147247,104890.0,104880.0,0.047737]
[1737276162145,0.70147247,104890.0,104880.0,0.11577301]
[1737276162440,0.70147247,104890.0,104880.0,0.047737]
[1737276163367,0.34067247,104890.0,104880.0,0.11577301]
[1737276163759,0.2273,104890.0,104880.0,0.51617821]
[1737276164264,0.5881,104890.0,104880.0,0.51617821]
[1737276165463,0.5881,104890.0,104880.0,0.34458523]
[1737276165668,0.5881,104890.0,104880.0,0.27654922]
[1737276166265,0.5881,104890.0,104880.0,0.34458523]
[1737276167358,0.5881,104890.0,104880.0,0.27654922]
[1737276168465,0.5881,104890.0,104880.0,0.34458523]
[1737276168859,0.2273,104890.0,104880.0,0.34458523]
[1737276169863,0.2273,104890.0,104880.0,0.27654922]
[1737276170059,0.5881,104890.0,104880.0,0.27654922]
[1737276170764,0.5881,104890.0,104880.0,0.047737]
[1737276171262,0.2273,104890.0,104880.0,0.047737]
[1737276171467,0.5881,104890.0,104880.0,0.047737]
[1737276171766,0.75811603,104890.0,104880.0,0.047737]
[1737276172267,0.75811603,104890.0,104880.0,0.11577301]
[1737276173564,0.39731603,104890.0,104880.0,0.11577301]
[1737276174166,0.39731603,104890.0,104880.0,0.11599492]
[1737276175169,0.39731603,104890.0,104880.0,0.47679492]
[1737276175365,0.39731603,104890.0,104880.0,0.11599492]
[1737276175869,0.17001603,104890.0,104880.0,0.47679492]
[1737276176173,0.35318513,104910.0,104900.0,0.047728]
[1737276176369,0.35318513,104910.0,104900.0,0.47656401]
[1737276176765,0.1543,104910.0,104900.0,0.47656401]
[1737276176967,0.1543,104910.0,104900.0,0.11576401]
[1737276177570,0.1543,104910.0,104900.0,0.47656401]
[1737276177770,0.1543,104910.0,104900.0,0.11576401]
[1737276178273,0.1543,104910.0,104900.0,0.27654022]
[1737276178777,0.5151,104910.0,104900.0,0.22881222]
[1737276178977,0.63086001,104910.0,104900.0,0.22881222]
[1737276179369,0.562824,104910.0,104900.0,0.22881222]
[1737276180886,0.67621327,104910.0,104900.0,0.22881222]
[1737276182091,0.67621327,104910.0,104900.0,0.17158214]
[1737276182569,0.67621327,104910.0,104900.0,0.23961815]
[1737276183772,0.67621327,104910.0,104900.0,0.17158214]
[1737276183974,0.62848927,104910.0,104900.0,0.28734615]
[1737276184579,0.26768927,104910.0,104900.0,0.28734615]
[1737276185281,0.26768927,104910.0,104900.0,0.21931014]
[1737276185576,0.67621327,104910.0,104900.0,0.17158214]
[1737276185781,0.81794986,104910.0,104890.0,0.44812636]
[1737276185971,0.0782,104900.0,104890.0,0.44812636]
[1737276186175,0.0782,104900.0,104890.0,0.40039436]
[1737276186176,0.486728,104900.0,104890.0,0.40039436]
[1737276186985,0.60011727,104900.0,104890.0,0.17158214]
[1737276187468,0.60011727,104900.0,104890.0,0.05378214]
[1737276187676,0.047733,104890.0,104880.0,0.22903413]
[1737276187876,0.47656901,104890.0,104880.0,0.22903413]
[1737276188075,0.408533,104890.0,104880.0,0.22903413]
[1737276188585,0.482833,104890.0,104880.0,0.22903413]
[1737276189884,0.482833,104890.0,104880.0,0.00022191]
[1737276189885,0.62456959,104890.0,104880.0,0.00022191]
[1737276190081,0.6926056,104890.0,104880.0,0.00022191]
[1737276190892,0.7659056,104890.0,104880.0,0.00022191]
[1737276191478,0.69786959,104890.0,104880.0,0.00022191]
[1737276192478,0.556133,104890.0,104880.0,0.00022191]
[1737276193285,0.195333,104890.0,104880.0,0.00022191]
[1737276193484,0.92663775,104890.0,104880.0,0.00022191]
[1737276196084,0.92663775,104890.0,104880.0,0.06825792]
[1737276196800,0.99467376,104890.0,104880.0,0.00022191]
[1737276200283,1.1079164,104890.0,104880.0,0.00022191]
[1737276201491,0.047742,104870.0,104860.0,0.22881222]
[1737276201679,0.408542,104870.0,104860.0,0.22881222]
[1737276202086,0.553642,104870.0,104860.0,0.22881222]
[1737276202281,0.914442,104870.0,104860.0,0.22881222]
[1737276203291,0.914442,104870.0,104850.0,1.86764823]
[1737276203490,0.408546,104860.0,104850.0,1.86764823]
[1737276204394,0.047746,104860.0,104850.0,1.86764823]
[1737276204594,0.408546,104860.0,104850.0,1.63883601]
[1737276208094,0.58982465,104860.0,104830.0,0.3608]
[1737276208393,0.58982465,104860.0,104820.0,0.59104272]
[1737276208394,0.04776,104830.0,104820.0,0.37594272]
[1737276208690,0.40856,104830.0,104820.0,1.80104272]
[1737276208889,0.40856,104830.0,104820.0,1.86907873]
[1737276209395,0.52180264,104830.0,104820.0,1.64026651]
[1737276211492,0.52180264,104830.0,104820.0,1.5722305]
[1737276211699,0.52180264,104830.0,104820.0,1.64026651]
[1737276212086,0.53159154,104830.0,104820.0,1.64026651]
[1737276212492,0.53159154,104830.0,104820.0,0.14026651]
[1737276212893,0.53159154,104830.0,104820.0,1.64026651]
[1737276213499,0.52180264,104830.0,104820.0,1.64026651]
[1737276214993,0.40856,104830.0,104820.0,1.64026651]
[1737276216500,0.3608,104830.0,104820.0,1.64026651]
[1737276216795,0.047756,104840.0,104820.0,2.04883051]
[1737276216991,0.047756,104840.0,104830.0,0.06803601]
[1737276217193,0.195752,104850.0,104830.0,0.18829501]
[1737276217393,0.121252,104850.0,104840.0,0.14513601]
[1737276217789,0.121252,104850.0,104820.0,1.97803051]
[1737276217790,0.047757,104840.0,104820.0,1.97803051]
[1737276218103,0.408557,104840.0,104830.0,0.0771]
[1737276218502,0.408557,104840.0,104830.0,1.5771]
[1737276219004,0.04776,104830.0,104820.0,0.73634272]
[1737276219200,0.40856,104830.0,104820.0,0.44357873]
[1737276219502,0.40856,104830.0,104820.0,1.94357873]
[1737276221604,0.40856,104830.0,104820.0,1.71476651]
[1737276222302,0.40856,104830.0,104820.0,0.21476651]
[1737276222797,0.40856,104830.0,104820.0,1.64196651]
[1737276223006,0.55011331,104830.0,104820.0,1.5014305]
[1737276223305,0.62501331,104830.0,104820.0,1.5014305]
[1737276225307,0.69961331,104830.0,104820.0,1.5014305]
[1737276226208,0.69961331,104830.0,104820.0,0.0014305]
[1737276227705,0.86947728,104830.0,104820.0,0.0014305]
[1737276227905,0.87885798,104830.0,104820.0,0.0014305]
[1737276228709,0.73730467,104830.0,104820.0,0.0014305]
[1737276231713,0.5674407,104830.0,104820.0,0.0014305]
[1737276233219,0.68062794,104830.0,104820.0,0.0014305]
[1737276233918,0.68062794,104830.0,104820.0,0.06946651]
[1737276236221,0.18808724,104830.0,104820.0,0.11723151]
[1737276236428,0.11318724,104830.0,104820.0,0.11723151]
[1737276236620,0.11318724,104830.0,104820.0,0.63323151]
[1737276236924,0.11318724,104830.0,104820.0,2.13323151]
[1737276237224,0.11318724,104830.0,104820.0,2.36204373]
[1737276238318,0.21633189,104830.0,104820.0,2.13323151]
[1737276240929,0.21633189,104830.0,104820.0,2.14298739]
[1737276246333,0.11348112,104840.0,104830.0,0.04776]
[1737276246531,0.11348112,104840.0,104830.0,0.55109601]
[1737276247636,0.66983412,104850.0,104840.0,0.047756]
[1737276248223,0.047756,104840.0,104830.0,0.76730669]
[1737276248639,0.047756,104840.0,104830.0,0.47642174]